fUSD/lending_fUSD_20240829
["ID","MTS","AMOUNT","RATE_DAILY","PERIOD"]
[336576195,1724952885788,-500.0,0.00024931,4]
[336576196,1724952885803,-5212.15,0.00024931,4]
[336576197,1724952885812,-1384.07,0.00024931,4]
[336576198,1724952885821,-4230.67,0.00024931,4]
[336576199,1724952885830,-2643.55247585,0.00024931,4]
[336576200,1724952885839,-500.0,0.00024931,4]
[336576201,1724952885848,-500.0,0.00024931,4]
[336576202,1724952885857,-167.21186308,0.00024931,4]
[336576203,1724952885866,-7732.7,0.00024931,4]
[336576204,1724952885876,-575.4,0.00024931,4]
[336576205,1724952885886,-1075.71,0.00024931,4]
[336576206,1724952885899,-500.0,0.00024931,4]
[336576207,1724952885909,-2917.92,0.00024931,4]
[336576208,1724952885918,-1191.63,0.00024931,4]
[336576209,1724952885927,-1384.07,0.00024931,4]
[336576210,1724952885937,-5212.15,0.00024931,4]
[336576211,1724952885946,-4230.69438038,0.00024931,4]
[336576212,1724952885955,-218.65597427,0.00024931,4]
[336576213,1724952885965,-500.0,0.00024931,4]
[336576214,1724952885976,-7732.7,0.00024931,4]
[336576215,1724952885986,-575.4,0.00024931,4]
[336576216,1724952885996,-500.0,0.00024931,4]
[336576217,1724952886007,-1075.71,0.00024931,4]
[336576218,1724952886018,-1191.63,0.00024931,4]
[336576219,1724952886027,-770.48166354,0.00024931,4]
[336576220,1724952886042,-2917.92,0.00024931,4]
[336576221,1724952886052,-607.64427813,0.00024931,2]
[336576222,1724952886061,-1384.07,0.00024931,4]
[336576223,1724952886071,-5212.15,0.00024931,4]
[336576224,1724952886080,-500.0,0.00024931,4]
[336576225,1724952886090,-5222.79,0.00024931,4]
[336576226,1724952886100,-575.4,0.00024931,4]
[336576227,1724952886110,-500.0,0.00024931,4]
[336576228,1724952886121,-1075.71,0.00024931,4]
[336576229,1724952886131,-1384.07,0.00024931,4]
[336576230,1724952886141,-500.0,0.00024931,4]
[336576231,1724952886150,-5212.15,0.00024931,4]
[336576232,1724952886159,-2917.92,0.00024931,4]
[336576233,1724952886168,-1191.63,0.00024931,4]
[336576234,1724952886178,-5222.79,0.00024931,4]
[336576235,1724952886187,-575.4,0.00024931,4]
[336576236,1724952886196,-500.0,0.00024931,4]
[336576237,1724952886205,-7732.7,0.00024931,4]
[336576238,1724952886214,-500.0,0.00024931,4]
[336576239,1724952886223,-5212.15,0.00024931,4]
[336576240,1724952886232,-1075.71,0.00024931,4]
[336576241,1724952886242,-1191.63,0.00024931,4]
[336576242,1724952886251,-759.06,0.00024931,4]
[336576243,1724952886260,-763.97,0.00024931,4]
[336576244,1724952886269,-437.43279468,0.00024931,4]
[336576245,1724952886278,-5222.79,0.00024931,4]
[336576246,1724952886289,-1384.07,0.00024931,4]
[336576247,1724952886299,-500.0,0.00024931,4]
[336576248,1724952886308,-575.4,0.00024931,4]
[336576249,1724952886317,-1349.54,0.00024931,4]
[336576250,1724952886327,-500.0,0.00024931,4]
[336576251,1724952886336,-1191.63,0.00024931,4]
[336576252,1724952886345,-1075.71,0.00024931,4]
[336576253,1724952886355,-7732.7,0.00024931,4]
[336576254,1724952886364,-759.06,0.00024931,4]
[336576255,1724952886373,-2917.92,0.00024931,4]
[336576256,1724952886383,-763.97,0.00024931,4]
[336576257,1724952886393,-5222.79,0.00024931,4]
[336576258,1724952886403,-5212.15,0.00024931,4]
[336576259,1724952886414,-1384.07,0.00024931,4]
[336576260,1724952886425,-500.0,0.00024931,4]
[336576261,1724952886436,-575.4,0.00024931,4]
[336576262,1724952886445,-1349.54,0.00024931,4]
[336576263,1724952886456,-500.0,0.00024931,4]
[336576264,1724952886467,-1191.63,0.00024931,4]
[336576265,1724952886477,-1075.71,0.00024931,4]
[336576266,1724952886487,-7732.7,0.00024931,4]
[336576267,1724952886496,-759.06,0.00024931,4]
[336576268,1724952886506,-763.97,0.00024931,4]
[336576269,1724952886515,-2917.92,0.00024931,4]
[336576270,1724952886527,-5212.15,0.00024931,4]
[336576271,1724952886537,-1384.07,0.00024931,4]
[336576272,1724952886546,-5222.79,0.00024931,4]
[336576273,1724952886557,-575.4,0.00024931,4]
[336576274,1724952886566,-554.24808551,0.00024931,4]
[336576275,1724952886575,-1349.54,0.00024931,4]
[336576276,1724952886584,-1191.63,0.00024931,4]
[336576277,1724952886593,-500.0,0.00024931,4]
[336576278,1724952886602,-759.06,0.00024931,4]
[336576279,1724952886611,-7732.7,0.00024931,4]
[336576280,1724952886620,-763.97,0.00024931,4]
[336576281,1724952886631,-2917.92,0.00024931,4]
[336576282,1724952886641,-5212.15,0.00024931,4]
[336576283,1724952886651,-575.4,0.00024931,4]
[336576284,1724952886661,-5222.79,0.00024931,4]
[336576285,1724952886670,-500.0,0.00024931,4]
[336576286,1724952886679,-1191.63,0.00024931,4]
[336576287,1724952886689,-1349.54,0.00024931,4]
[336576288,1724952886700,-2837.32,0.00024931,4]
[336576289,1724952886709,-759.06,0.00024931,4]
[336576290,1724952886719,-7732.7,0.00024931,4]
[336576291,1724952886728,-1075.71,0.00024931,4]
[336576292,1724952886737,-763.97,0.00024931,4]
[336576293,1724952886746,-5212.15,0.00024931,4]
[336576294,1724952886755,-2917.92,0.00024931,4]
[336576295,1724952886764,-2856.57,0.00024931,4]
[336576296,1724952886773,-5222.79,0.00024931,4]
[336576297,1724952886782,-1384.07,0.00024931,4]
[336576298,1724952886792,-500.0,0.00024931,4]
[336576299,1724952886802,-1191.63,0.00024931,4]
[336576300,1724952886811,-2837.32,0.00024931,4]
[336576301,1724952886821,-1349.54,0.00024931,4]
[336576302,1724952886831,-575.4,0.00024931,4]
[336576303,1724952886840,-500.0,0.00024931,4]
[336576304,1724952886849,-759.06,0.00024931,4]
[336576305,1724952886859,-763.97,0.00024931,4]
[336576306,1724952886868,-7732.73812936,0.00024931,4]
[336576307,1724952886877,-1075.71,0.00024931,4]
[336576308,1724952886889,-2917.92,0.00024931,4]
[336576309,1724952886900,-5212.15,0.00024931,4]
[336576310,1724952886910,-2856.57,0.00024931,4]
[336576311,1724952886919,-5222.79,0.00024931,4]
[336576312,1724952886931,-3720.36,0.00024931,4]
[336576313,1724952886949,-1349.54,0.00024931,4]
[336576314,1724952886965,-500.0,0.00024931,4]
[336576315,1724952886977,-1191.83360235,0.00024931,4]
[336576316,1724952886993,-2837.32,0.00024931,4]
[336576317,1724952887008,-575.4,0.00024931,4]
[336576318,1724952887025,-500.0,0.00024931,4]
[336576319,1724952887041,-759.06,0.00024931,4]
[336576320,1724952887057,-1075.71,0.00024931,4]
[336576321,1724952887071,-1384.07,0.00024931,4]
[336576322,1724952887085,-2917.95795453,0.00024931,4]
[336576323,1724952887102,-763.97,0.00024931,4]
[336576324,1724952887116,-2856.57,0.00024931,4]
[336576325,1724952887128,-5212.15,0.00024931,4]
[336576326,1724952887142,-1349.54,0.00024931,4]
[336576327,1724952887157,-500.0,0.00024931,4]
[336576328,1724952887172,-500.0,0.00024931,4]
[336576329,1724952887189,-759.06,0.00024931,4]
[336576330,1724952887205,-2837.32,0.00024931,4]
[336576331,1724952887217,-575.59951497,0.00024931,4]
[336576332,1724952887229,-3720.36,0.00024931,4]
[336576333,1724952887244,-1384.07,0.00024931,4]
[336576334,1724952887260,-763.97,0.00024931,4]
[336576335,1724952887274,-1075.71,0.00024931,4]
[336576336,1724952887288,-2856.57,0.00024931,4]
[336576337,1724952887302,-5212.15,0.00024931,4]
[336576338,1724952887317,-5222.79,0.00024931,4]
[336576339,1724952887329,-500.0,0.00024931,4]
[336576340,1724952887350,-759.06,0.00024931,4]
[336576341,1724952887363,-575.81693084,0.00024931,4]
[336576342,1724952887375,-3720.36,0.00024931,4]
[336576343,1724952887388,-1384.07,0.00024931,4]
[336576344,1724952887401,-2837.32,0.00024931,4]
[336576345,1724952887413,-1349.54,0.00024931,4]
[336576346,1724952887427,-1075.71,0.00024931,4]
[336576347,1724952887440,-763.97,0.00024931,4]
[336576348,1724952887454,-2856.57,0.00024931,4]
[336576349,1724952887467,-5212.15,0.00024931,4]
[336576350,1724952887480,-5222.79,0.00024931,4]
[336576351,1724952887493,-759.06,0.00024931,4]
[336576352,1724952887507,-4180.91,0.00024931,4]
[336576353,1724952887520,-500.0,0.00024931,4]
[336576354,1724952887533,-1384.18848834,0.00024931,4]
[336576355,1724952887546,-3720.36,0.00024931,4]
[336576356,1724952887559,-2837.32,0.00024931,4]
[336576357,1724952887571,-1349.54,0.00024931,4]
[336576358,1724952887586,-763.97,0.00024931,4]
[336576359,1724952887600,-1075.83168104,0.00024931,4]
[336576360,1724952887619,-5212.28805041,0.00024931,4]
[336576361,1724952887630,-2856.57,0.00024931,4]
[336576362,1724952887643,-759.06,0.00024931,4]
[336576363,1724952887655,-500.0,0.00024931,4]
[336576364,1724952887668,-2110.96431283,0.00024931,4]
[336576365,1724952904882,-611.804,0.00024931,4]
[336576366,1724952904898,-592.44188869,0.00024931,4]
[336576367,1724952904928,-865.69979848,0.00024931,4]
[336576368,1724952904941,-1349.54,0.00024931,4]
[336576369,1724952904954,-3720.36,0.00024931,4]
[336576370,1724952904970,-436.83460672,0.00024931,4]
[336576371,1724952904988,-327.13539328,0.00024931,4]
[336576372,1724952905002,-265.06880554,0.00024931,4]
[336576373,1724952905019,-1321.4022825,0.00024931,4]
[336576374,1724952905036,-1250.84891196,0.00024931,4]
[336576375,1724952905054,-618.51738024,0.00024931,4]
[336576376,1724952938591,1064.4194,0.000109,2]
[336576378,1724952986945,317.24,0.00010959,2]
[336576380,1724953217088,2000.0,0.00020752,120]
[336576381,1724953477974,158.04,0.00010959,2]
[336576389,1724953831985,-150.0,0.00011,2]
[336576390,1724953831995,-250.0,0.00012,2]
[336576391,1724953832004,-466.71,0.00013713,2]
[336576392,1724953832016,-500.0,0.00013713,2]
[336576393,1724953832027,-2311.134123,0.00013713,2]
[336576394,1724953832038,-821.2052598,0.00013882,2]
[336576395,1724953832057,-432.92,0.00013882,2]
[336576396,1724953832068,-463.3747402,0.00013882,2]
[336576397,1724953832078,-150.0,0.00013945,2]
[336576398,1724953832087,-150.0,0.00013981,2]
[336576399,1724953832096,-300.0,0.00013981,2]
[336576400,1724953832106,-458.38747201,0.00013982,2]
[336576403,1724953832826,-466.59252799,0.00013982,2]
[336576404,1724953832835,-623.0,0.00013982,2]
[336576405,1724953832845,-447.0,0.00013982,2]
[336576406,1724953832855,-556.0,0.00013982,2]
[336576407,1724953832864,-810.0,0.00013982,2]
[336576408,1724953832873,-1896.0,0.00013982,2]
[336576409,1724953832883,-551.0,0.00013982,2]
[336576410,1724953832892,-1165.0,0.00013982,2]
[336576411,1724953832902,-764.0,0.00013982,2]
[336576412,1724953832911,-3319.0,0.00013982,2]
[336576413,1724953832921,-247.0,0.00013982,2]
[336576414,1724953832930,-3727.0,0.00013982,2]
[336576415,1724953832940,-289.0,0.00013982,2]
[336576416,1724953832949,-6335.512,0.00013982,2]
[336576417,1724953832959,-1668.507,0.00013982,2]
[336576418,1724953832968,-300.0,0.00014,2]
[336576419,1724953832977,-499.99,0.00014,2]
[336576420,1724953832987,-150.0,0.00014,2]
[336576421,1724953832996,-10232.67,0.00014,2]
[336576422,1724953833006,-8151.64617801,0.00014,2]
[336576423,1724953833058,-794.94382199,0.00014,2]
[336576424,1724953833068,-150.0,0.00015099,2]
[336576425,1724953833077,-528.84,0.00015099,2]
[336576426,1724953833087,-420.0,0.00015317,2]
[336576427,1724953833096,-350.0,0.00016,2]
[336576428,1724953833105,-587.0,0.00016781,2]
[336576429,1724953833115,-333.96617868,0.00017259,2]
[336576430,1724953833126,-704.92261432,0.00017259,2]
[336576431,1724953833138,-845.381207,0.00017259,2]
[336576432,1724953833148,-317.24,0.00017592,2]
[336576433,1724953833157,-153.21,0.00018048,2]
[336576434,1724953833166,-823.0,0.00018385,2]
[336576435,1724953833176,-193.49858255,0.000185,7]
[336576436,1724953833188,-59.89141745,0.000185,7]
[336576437,1724953833199,-163.48,0.00018811,2]
[336576438,1724953833212,-489.70224521,0.00019451,2]
[336576439,1724953833224,-251.04065572,0.00019451,2]
[336576440,1724953833234,-642.55661676,0.00019452,2]
[336576441,1724953833251,-2059.17338324,0.00019452,2]
[336576442,1724953833263,-250.0,0.00019982,2]
[336576443,1724953833272,-250.0,0.00019982,2]
[336576444,1724953833281,-900.0,0.00019999,2]
[336576445,1724953833293,-528.27944598,0.00019999,2]
[336576446,1724953833326,-571.72055402,0.00019999,2]
[336576447,1724953833336,-150.0,0.0002,2]
[336576448,1724953833346,-993.0,0.0002,2]
[336576449,1724953833356,-200.0,0.00020064,2]
[336576450,1724953833366,-1152.0,0.00020142,2]
[336576451,1724953833376,-3544.69,0.0002018,2]
[336576452,1724953833387,-1500.0,0.00020189,2]
[336576453,1724953833397,-399.7,0.00020275,2]
[336576454,1724953833406,-1000.0,0.00020313,2]
[336576455,1724953833415,-150.0,0.00020344,2]
[336576456,1724953833424,-2500.0,0.00020392,5]
[336576457,1724953833433,-200.0,0.00020471,2]
[336576458,1724953833443,-10953.45,0.00020578,2]
[336576459,1724953833452,-161.01,0.00020632,2]
[336576460,1724953833462,-250.0,0.00020658,2]
[336576461,1724953833471,-219.95,0.00020666,2]
[336576462,1724953833480,-178.79,0.00020726,2]
[336576463,1724953833490,-311.02,0.00021,2]
[336576464,1724953833499,-1001.32,0.00021,2]
[336576465,1724953833510,-287.042154,0.00021,2]
[336576466,1724953833520,-193.96,0.00021068,2]
[336576467,1724953833530,-163.48,0.00021074,2]
[336576468,1724953833540,-1000.0,0.00021088,2]
[336576469,1724953833550,-765.89789198,0.00021088,3]
[336576470,1724953833562,-234.10210802,0.00021088,3]
[336576471,1724953833572,-1000.0,0.00021088,2]
[336576472,1724953833581,-1000.0,0.00021088,2]
[336576473,1724953833590,-1000.0,0.00021088,3]
[336576474,1724953833600,-1000.0,0.00021088,2]
[336576475,1724953833609,-1000.0,0.00021088,2]
[336576476,1724953833619,-1000.0,0.00021088,2]
[336576477,1724953833629,-1000.0,0.00021088,3]
[336576478,1724953833638,-1039.44,0.00021088,2]
[336576479,1724953833649,-900.0,0.00021095,2]
[336576480,1724953833658,-1100.0,0.00021095,2]
[336576481,1724953833668,-623.64,0.00021589,30]
[336576482,1724953833678,-1001.32,0.000218,2]
[336576483,1724953833688,-8483.93,0.00021918,2]
[336576484,1724953833698,-1000.0,0.00021918,30]
[336576485,1724953833707,-500.0,0.00022,2]
[336576486,1724953833717,-8500.0,0.00022,2]
[336576487,1724953833727,-1613.0,0.00022067,2]
[336576488,1724953833737,-1000.0,0.00022089,30]
[336576489,1724953833746,-900.0,0.00022191,2]
[336576490,1724953833756,-1100.0,0.00022191,2]
[336576491,1724953833766,-1000.0,0.0002226,30]
[336576492,1724953833776,-1000.0,0.00022432,30]
[336576493,1724953833785,-360.0,0.00022434,2]
[336576494,1724953833798,-1001.32,0.000226,2]
[336576495,1724953833808,-1000.0,0.00022603,30]
[336576496,1724953833818,-311.02,0.0002273,2]
[336576497,1724953833827,-1000.0,0.00022774,30]
[336576498,1724953833837,-1000.0,0.00022852,2]
[336576499,1724953833847,-1000.0,0.00022945,30]
[336576500,1724953833856,-150.0,0.00023,2]
[336576501,1724953833865,-200.0,0.00023,2]
[336576502,1724953833876,-167.0,0.00023078,2]
[336576503,1724953833885,-1000.0,0.00023116,30]
[336576504,1724953833895,-180.0,0.00023205,2]
[336576505,1724953833904,-900.0,0.00023287,2]
[336576506,1724953833914,-1100.0,0.00023287,2]
[336576507,1724953833924,-1000.0,0.00023288,30]
[336576508,1724953833934,-163.48,0.00023338,2]
[336576509,1724953833944,-1001.32,0.000234,2]
[336576510,1724953833954,-1000.0,0.00023459,30]
[336576511,1724953833964,-441.28,0.0002349,3]
[336576512,1724953833973,-1000.0,0.000235,2]
[336576513,1724953833983,-1000.0,0.000235,2]
[336576514,1724953833992,-1000.0,0.000235,2]
[336576515,1724953834002,-1000.0,0.000235,2]
[336576516,1724953834011,-1000.0,0.000235,2]
[336576517,1724953834021,-1000.0,0.000235,2]
[336576518,1724953834031,-1000.0,0.000235,2]
[336576519,1724953834040,-1016.3243,0.000235,2]
[336576520,1724953834050,-1000.0,0.0002363,30]
[336576521,1724953834060,-1000.0,0.000237,2]
[336576522,1724953834069,-2500.0,0.000237,2]
[336576523,1724953834079,-5655.86823645,0.0002379,3]
[336576524,1724953834089,-3000.0,0.000238,2]
[336576525,1724953834098,-167989.08229699,0.000238,7]
[336576526,1724953834108,-1000.0,0.00023801,30]
[336576527,1724953834118,-167.0,0.0002384,2]
[336576528,1724953834127,-3770.5788243,0.00023851,3]
[336576529,1724953834137,-500.0,0.00023931,2]
[336576530,1724953834147,-1885.28941215,0.00023963,3]
[336576531,1724953834156,-3770.5788243,0.00023972,3]
[336576532,1724953834166,-1000.0,0.00023973,30]
[336576533,1724953834175,-500.0,0.00024065,2]
[336576534,1724953834185,-3770.5788243,0.00024094,3]
[336576535,1724953834195,-200.0,0.000241,2]
[336576536,1724953834204,-1885.28941215,0.00024112,3]
[336576537,1724953834218,-1000.0,0.00024122,2]
[336576538,1724953834227,-1000.0,0.00024144,30]
[336576539,1724953834237,-2258.0,0.00024176,2]
[336576540,1724953834246,-1001.32,0.000242,2]
[336576541,1724953834258,-3770.5788243,0.00024215,3]
[336576542,1724953834267,-317.24,0.00024225,2]
[336576543,1724953834277,-1885.28941215,0.00024244,3]
[336576544,1724953834288,-700.0,0.0002425,2]
[336576545,1724953834298,-500.0,0.00024254,2]
[336576546,1724953834308,-200.00376887,0.00024254,2]
[336576547,1724953834318,-600.0,0.000243,15]
[336576548,1724953834328,-1000.0,0.00024315,30]
[336576549,1724953834338,-3770.5788243,0.00024336,3]
[336576550,1724953834347,-500.0,0.00024346,2]
[336576551,1724953834357,-500.0,0.00024348,2]
[336576552,1724953834368,-1885.28941215,0.00024352,3]
[336576553,1724953834377,-158.36824393,0.00024356,2]
[336576554,1724953834387,-4100.0,0.00024362,2]
[336576555,1724953834396,-1885.28941215,0.00024373,3]
[336576556,1724953834406,-500.0,0.00024374,2]
[336576557,1724953834415,-800.0,0.00024377,2]
[336576558,1724953834424,-900.0,0.00024383,2]
[336576559,1724953834434,-1100.0,0.00024383,2]
[336576560,1724953834443,-500.0,0.0002439,2]
[336576561,1724953834453,-3770.5788243,0.00024457,3]
[336576562,1724953834463,-500.0,0.00024458,2]
[336576563,1724953834473,-311.02,0.0002446,2]
[336576564,1724953834482,-1000.0,0.00024486,30]
[336576565,1724953834492,-500.0,0.00024498,2]
[336576566,1724953834502,-205.77734669,0.00024517,2]
[336576567,1724953834511,-5655.86823645,0.00024578,4]
[336576568,1724953834520,-184.95513278,0.0002458,2]
[336576569,1724953834530,-167.0,0.00024602,2]
[336576570,1724953834539,-500.0,0.0002461,2]
[336576571,1724953834548,-500.0,0.00024619,2]
[336576572,1724953834559,-1885.28941215,0.00024645,4]
[336576573,1724953834569,-4100.0,0.00024655,2]
[336576574,1724953834579,-1000.0,0.00024658,30]
[336576575,1724953834588,-11750.47420761,0.00024682,2]
[336576576,1724953834598,-300.0,0.00024682,2]
[336576577,1724953834608,-3770.5788243,0.000247,4]
[336576578,1724953834618,-3646.60895614,0.000247,2]
[336576579,1724953834627,-2000.0,0.000247,2]
[336576580,1724953834637,-500.0,0.00024735,2]
[336576581,1724953834647,-623.64,0.0002475,30]
[336576582,1724953834657,-500.0,0.00024752,2]
[336576583,1724953834667,-449.80757094,0.0002478,2]
[336576584,1724953834676,-1885.28941215,0.0002478,4]
[336576585,1724953834686,-600.0,0.0002479,2]
[336576586,1724953834696,-800.0,0.00024795,2]
[336576587,1724953834706,-1885.28941215,0.0002481,4]
[336576588,1724953834716,-5655.86823645,0.00024811,4]
[336576589,1724953834725,-500.0,0.00024813,2]
[336576590,1724953834735,-7008.20154806,0.0002482,61]
[336576591,1724953834744,-16873.7994692,0.00024821,4]
[336576592,1724953834753,-150.83,0.00024821,2]
[336576593,1724953834763,-215.57492419,0.00024821,2]
[336576594,1724953834772,-184.62182622,0.00024828,2]
[336576595,1724953834782,-1000.0,0.00024829,30]
[336576596,1724953834793,-615.3791,0.00024831,2]
[336576597,1724953834803,-52264.4437,0.00024831,2]
[336576598,1724953834813,-4372.61812079,0.00024831,2]
[336576599,1724953834822,-3589.5239,0.00024831,2]
[336576600,1724953834834,-1759.4251,0.00024831,2]
[336576601,1724953834844,-691.7157,0.00024831,2]
[336576602,1724953834854,-257.22650661,0.00024831,2]
[336576603,1724953834863,-1184.2370866,0.00024831,2]
[336576604,1724953834872,-166.10608005,0.00024831,2]
[336576605,1724953834882,-500.0,0.00024834,2]
[336576606,1724953834891,-500.0,0.00024838,2]
[336576607,1724953834901,-16873.7994692,0.0002489,4]
[336576608,1724953834911,-700.0,0.00024895,2]
[336576609,1724953834921,-2000.0,0.000249,2]
[336576610,1724953834931,-1083.0,0.000249,4]
[336576611,1724953834941,-166.10608004,0.000249,2]
[336576612,1724953834950,-12561.73994128,0.000249,15]
[336576613,1724953834960,-496.0,0.000249,8]
[336576614,1724953834969,-496.0,0.000249,8]
[336576615,1724953834979,-976.0,0.000249,8]
[336576616,1724953834988,-164.95884243,0.00024908,2]
[336576617,1724953834998,-97789.92713122,0.00024911,4]
[336576618,1724953835012,-104695.66649978,0.00024911,4]
[336576619,1724953835022,-334.24,0.0002492,2]
[336576620,1724953835032,-334.24,0.0002492,2]
[336576621,1724953835041,-334.24,0.0002492,2]
[336576622,1724953835051,-334.24,0.0002492,2]
[336576623,1724953835060,-334.24,0.0002492,2]
[336576624,1724953835070,-334.24,0.0002492,2]
[336576625,1724953835080,-334.24,0.0002492,2]
[336576626,1724953835090,-334.24,0.0002492,2]
[336576627,1724953835102,-334.24,0.0002492,2]
[336576628,1724953835112,-334.24,0.0002492,2]
[336576629,1724953835123,-611.0,0.00024921,2]
[336576630,1724953835134,-40163.05600022,0.00024921,4]
[336576631,1724953835145,-3460.2277089,0.00024921,4]
[336576632,1724953835159,-347.96815075,0.00024921,4]
[336576633,1724953835171,-250.0,0.00024921,4]
[336576634,1724953835184,-18861.52224547,0.00024921,4]
[336576635,1724953835196,-919.70999,0.00024921,4]
[336576636,1724953835209,-404.4999995,0.00024921,4]
[336576637,1724953835222,-392.16304759,0.00024921,4]
[336576638,1724953835234,-2696.05073457,0.00024921,4]
[336576639,1724953835243,-54272.86001322,0.00024921,4]
[336576640,1724953835256,-6521.16285187,0.00024921,4]
[336576641,1724953835268,-49106.64969746,0.00024921,4]
[336576646,1724953838075,-180.16396197,0.000119,2]
[336576647,1724953838085,-150.131,0.00013982,2]
[336576648,1724953838094,-150.709,0.00013982,2]
[336576649,1724953838103,-1000.0,0.00022466,2]
[336576650,1724953838113,-508.47502734,0.00024921,4]
[336576651,1724953838155,-2118.48446416,0.00024921,4]
[336576652,1724953838168,-325.88,0.00024921,4]
[336576653,1724953838181,-1427.25349251,0.00024921,4]
[336576654,1724953838193,-3835.83073844,0.00024921,4]
[336576655,1724953838203,-164.95884243,0.00024928,2]
[336576656,1724953838214,-1003.68027444,0.0002493,2]
[336576657,1724953838225,-1064.28318642,0.0002493,2]
[336576658,1724953838234,-500.0,0.0002493,14]
[336576659,1724953838243,-634.098539,0.00024931,2]
[336576660,1724953838254,-175.64905373,0.00024931,2]
[336576661,1724953838263,-73856.88597422,0.00024931,15]
[336576662,1724953838273,-8208.53520196,0.00024931,15]
[336576663,1724953838285,-618.74932003,0.00024931,15]
[336576664,1724953838403,-253.7732008,0.00024931,15]
[336576946,1724953841107,-180.16396197,0.00012757,2]
[336576948,1724953841117,-316.26483367,0.00024931,15]
[336576951,1724953841129,-1517.878279,0.00024931,15]
[336576953,1724953841140,-289.24499992,0.00024931,15]
[336576955,1724953841151,-518.42798126,0.00024931,15]
[336576959,1724953841181,-150.0,0.00023845,2]
[336576961,1724953841190,-572.19529931,0.00024931,15]
[336577306,1724953844517,-150.0,0.00024482,2]
[336577308,1724953844527,-426.18742791,0.0002493,2]
[336577310,1724953844539,-105.9541653,0.0002493,2]
[336577312,1724953844549,-207.4273834,0.00024931,15]
[336577314,1724953844560,-1612.32159237,0.00024931,15]
[336577316,1724953844571,-369.04840763,0.00024931,15]
[336577319,1724953844586,-32787.32231221,0.00024931,15]
[336577321,1724953844595,-300.0,0.00024931,5]
[336577323,1724953844604,-500.0,0.00024931,4]
[336577325,1724953844614,-500.0,0.00024931,4]
[336577327,1724953844624,-500.0,0.00024931,4]
[336577329,1724953844633,-500.0,0.00024931,4]
[336577331,1724953844642,-500.0,0.00024931,4]
[336577333,1724953844651,-500.0,0.00024931,4]
[336577335,1724953844660,-500.0,0.00024931,4]
[336577337,1724953844669,-500.0,0.00024931,4]
[336577338,1724953844678,-355.32956339,0.00024931,4]
[336577340,1724953844687,-348.40281185,0.00024931,4]
[336577342,1724953844697,-500.0,0.00024931,4]
[336577344,1724953844706,-305.14788879,0.00024931,4]
[336577347,1724953844723,-500.0,0.00024931,4]
[336577349,1724953844732,-522.66080127,0.00024931,4]
[336577351,1724953844741,-500.0,0.00024931,4]
[336577353,1724953844751,-500.0,0.00024931,4]
[336577355,1724953844761,-500.0,0.00024931,4]
[336577357,1724953844771,-500.0,0.00024931,4]
[336577359,1724953844781,-500.0,0.00024931,4]
[336577361,1724953844792,-173.52245327,0.00024931,4]
[336577363,1724953844801,-500.0,0.00024931,4]
[336577365,1724953844810,-171.93499998,0.00024931,4]
[336577367,1724953844819,-571.74,0.00024931,4]
[336577369,1724953844828,-500.0,0.00024931,4]
[336577371,1724953844837,-571.74,0.00024931,4]
[336577373,1724953844846,-500.0,0.00024931,4]
[336577375,1724953844856,-571.74,0.00024931,4]
[336577377,1724953844865,-571.74,0.00024931,4]
[336577379,1724953844875,-500.0,0.00024931,4]
[336577381,1724953844884,-571.74,0.00024931,4]